[Event "Titled Tuesday Blitz February 28 Early 2023"]
[White "Bongo Akanga Ndjila, Barthelemy"]
[Black "Qashashvili, Alexandre"]
[WhiteFideId "10609431"]
[BlackFideId "13600842"]
[WhiteElo "1768"]
[BlackElo "2405"]
[Result "1-0"]
[Round "07"]
[TimeControl "180+2"]
[Date "2023.02.28"]
[WhiteClock "0:00:52"]
[BlackClock "0:00:07"]

1. d4 {[%clk 0:03:00]}  d5 {[%clk 0:02:57]} 2. c4 {[%clk 0:02:56]}  c6 {[%clk 0:02:56]} 3. Qc2 {[%clk 0:02:55]}  Nf6 {[%clk 0:02:38]} 4. e3 {[%clk 0:02:51]}  g6 {[%clk 0:02:30]} 5. Nf3 {[%clk 0:02:50]}  Bg7 {[%clk 0:02:30]} 6. Nc3 {[%clk 0:02:47]}  O-O {[%clk 0:02:30]} 7. Bd3 {[%clk 0:02:47]}  Nbd7 {[%clk 0:02:29]} 8. b3 {[%clk 0:02:47]}  Re8 {[%clk 0:02:26]} 9. Bb2 {[%clk 0:02:46]}  e5 {[%clk 0:02:25]} 10. Nxe5 {[%clk 0:02:46]}  Nxe5 {[%clk 0:02:26]} 11. dxe5 {[%clk 0:02:46]}  Rxe5 {[%clk 0:02:26]} 12. Nxd5 {[%clk 0:02:42]}  Nxd5 {[%clk 0:02:07]} 13. cxd5 {[%clk 0:02:41]}  Rxd5 {[%clk 0:02:04]} 14. Bxg7 {[%clk 0:02:41]}  Kxg7 {[%clk 0:02:04]} 15. Bc4 {[%clk 0:02:34]}  Qa5+ {[%clk 0:01:59]} 16. Ke2 {[%clk 0:02:34]}  Rd6 {[%clk 0:01:54]} 17. Rhd1 {[%clk 0:02:33]}  Bg4+ {[%clk 0:01:49]} 18. f3 {[%clk 0:02:32]}  Bf5 {[%clk 0:01:44]} 19. e4 {[%clk 0:02:31]}  Rxd1 {[%clk 0:01:43]} 20. Rxd1 {[%clk 0:02:30]}  Re8 {[%clk 0:01:42]} 21. Kf1 {[%clk 0:02:28]}  Be6 {[%clk 0:01:41]} 22. Bxe6 {[%clk 0:02:22]}  Rxe6 {[%clk 0:01:42]} 23. Rd7 {[%clk 0:02:13]}  c5 {[%clk 0:01:34]} 24. Kf2 {[%clk 0:01:53]}  b6 {[%clk 0:01:08]} 25. Kg3 {[%clk 0:01:45]}  Qe1+ {[%clk 0:01:07]} 26. Qf2 {[%clk 0:01:22]}  Qc3 {[%clk 0:01:00]} 27. Qd2 {[%clk 0:01:16]}  Qe5+ {[%clk 0:00:52]} 28. Kf2 {[%clk 0:01:13]}  Qxh2 {[%clk 0:00:49]} 29. Qd5 {[%clk 0:01:13]}  Qh4+ {[%clk 0:00:42]} 30. Ke2 {[%clk 0:01:13]}  Qg3 {[%clk 0:00:32]} 31. Qxe6 {[%clk 0:01:11]}  Qxg2+ {[%clk 0:00:32]} 32. Ke3 {[%clk 0:01:12]}  Qg1+ {[%clk 0:00:21]} 33. Kd2 {[%clk 0:01:10]}  Qf2+ {[%clk 0:00:18]} 34. Kc1 {[%clk 0:01:08]}  Qe1+ {[%clk 0:00:17]} 35. Kb2 {[%clk 0:01:06]}  Qe2+ {[%clk 0:00:15]} 36. Ka3 {[%clk 0:01:04]}  Qa6+ {[%clk 0:00:15]} 37. Kb2 {[%clk 0:01:04]}  Qe2+ {[%clk 0:00:14]} 38. Kc3 {[%clk 0:00:56]}  Qe3+ {[%clk 0:00:11]} 39. Kc4 {[%clk 0:00:52]}  Qe2+ {[%clk 0:00:07]} 40. Kd5 {[%clk 0:00:52]} 1-0


[Site "https://www.chess.com"]

[Event "Titled Tuesday Blitz February 28 Early 2023"]
[White "Kornyukov, Alexey"]
[Black "Seifert, Henryk"]
[WhiteFideId "4150457"]
[BlackFideId "1100963"]
[WhiteElo "2352"]
[BlackElo "2071"]
[Result "1/2-1/2"]
[Round "07"]
[TimeControl "180+2"]
[Date "2023.02.28"]
[WhiteClock "0:00:47"]
[BlackClock "0:00:07"]

1. e4 {[%clk 0:02:57]}  e6 {[%clk 0:02:59]} 2. d4 {[%clk 0:02:56]}  d5 {[%clk 0:02:58]} 3. Nc3 {[%clk 0:02:57]}  Nf6 {[%clk 0:02:57]} 4. Bg5 {[%clk 0:02:55]}  Be7 {[%clk 0:02:57]} 5. exd5 {[%clk 0:02:53]}  exd5 {[%clk 0:02:53]} 6. Nf3 {[%clk 0:02:53]}  Bg4 {[%clk 0:02:51]} 7. Bd3 {[%clk 0:02:52]}  O-O {[%clk 0:02:45]} 8. O-O {[%clk 0:02:51]}  h6 {[%clk 0:02:45]} 9. Bxf6 {[%clk 0:02:44]}  Bxf6 {[%clk 0:02:44]} 10. h3 {[%clk 0:02:42]}  Bxf3 {[%clk 0:02:20]} 11. Qxf3 {[%clk 0:02:39]}  c6 {[%clk 0:01:57]} 12. Qf5 {[%clk 0:02:22]}  g6 {[%clk 0:01:56]} 13. Qf4 {[%clk 0:02:11]}  Bg7 {[%clk 0:01:51]} 14. Rfe1 {[%clk 0:02:05]}  Nd7 {[%clk 0:01:49]} 15. Rad1 {[%clk 0:01:49]}  Qf6 {[%clk 0:01:48]} 16. Qxf6 {[%clk 0:01:47]}  Bxf6 {[%clk 0:01:45]} 17. Be2 {[%clk 0:01:44]}  Rfe8 {[%clk 0:01:41]} 18. Bg4 {[%clk 0:01:41]}  Nb6 {[%clk 0:01:38]} 19. Rxe8+ {[%clk 0:01:13]}  Rxe8 {[%clk 0:01:38]} 20. Kf1 {[%clk 0:01:12]}  Nc4 {[%clk 0:01:28]} 21. b3 {[%clk 0:01:09]}  Nd6 {[%clk 0:01:11]} 22. Ne2 {[%clk 0:01:05]}  h5 {[%clk 0:01:07]} 23. Bf3 {[%clk 0:01:05]}  Kg7 {[%clk 0:00:54]} 24. g3 {[%clk 0:01:05]}  a5 {[%clk 0:00:51]} 25. h4 {[%clk 0:01:06]}  Re7 {[%clk 0:00:49]} 26. a4 {[%clk 0:01:04]}  Ne4 {[%clk 0:00:37]} 27. Bxe4 {[%clk 0:01:03]}  Rxe4 {[%clk 0:00:31]} 28. c4 {[%clk 0:01:02]}  Re7 {[%clk 0:00:19]} 29. c5 {[%clk 0:00:59]}  Re4 {[%clk 0:00:16]} 30. Rd3 {[%clk 0:00:56]}  Kf8 {[%clk 0:00:11]} 31. f3 {[%clk 0:00:56]}  Re7 {[%clk 0:00:10]} 32. Kf2 {[%clk 0:00:55]}  Kg7 {[%clk 0:00:10]} 33. Rc3 {[%clk 0:00:50]}  Re8 {[%clk 0:00:09]} 34. Rd3 {[%clk 0:00:51]}  Re7 {[%clk 0:00:09]} 35. Nf4 {[%clk 0:00:48]}  Re8 {[%clk 0:00:06]} 36. Ne2 {[%clk 0:00:47]}  Re7 {[%clk 0:00:07]} 1/2-1/2


[Site "https://www.chess.com"]

[Event "Titled Tuesday Blitz February 28 Early 2023"]
[White "Martin, Lewis"]
[Black "Castillo Pena, Patricia Evarista"]
[WhiteFideId "410551"]
[BlackFideId "6412106"]
[WhiteElo "2145"]
[BlackElo "1919"]
[Result "1-0"]
[Round "07"]
[TimeControl "180+2"]
[Date "2023.02.28"]
[WhiteClock "0:01:00"]
[BlackClock "0:00:01"]

1. e4 {[%clk 0:03:00]}  c5 {[%clk 0:02:59]} 2. Nf3 {[%clk 0:03:00]}  d6 {[%clk 0:02:58]} 3. d4 {[%clk 0:03:01]}  cxd4 {[%clk 0:02:59]} 4. Nxd4 {[%clk 0:03:01]}  Nf6 {[%clk 0:03:00]} 5. Nc3 {[%clk 0:03:02]}  a6 {[%clk 0:03:00]} 6. Bg5 {[%clk 0:03:02]}  e6 {[%clk 0:03:00]} 7. f4 {[%clk 0:03:02]}  h6 {[%clk 0:03:00]} 8. Bh4 {[%clk 0:03:02]}  Qb6 {[%clk 0:03:00]} 9. a3 {[%clk 0:02:59]}  Be7 {[%clk 0:02:56]} 10. Bf2 {[%clk 0:02:54]}  Qc7 {[%clk 0:02:55]} 11. h3 {[%clk 0:02:54]}  Nc6 {[%clk 0:02:46]} 12. Qf3 {[%clk 0:02:50]}  O-O {[%clk 0:02:38]} 13. Bd3 {[%clk 0:02:47]}  e5 {[%clk 0:02:29]} 14. Nde2 {[%clk 0:02:27]}  Be6 {[%clk 0:02:25]} 15. f5 {[%clk 0:02:24]}  Bd7 {[%clk 0:02:23]} 16. O-O {[%clk 0:02:18]}  Rac8 {[%clk 0:02:22]} 17. Be3 {[%clk 0:02:16]}  Kh7 {[%clk 0:02:01]} 18. g4 {[%clk 0:02:14]}  Rh8 {[%clk 0:01:41]} 19. Nd5 {[%clk 0:02:12]}  Nxd5 {[%clk 0:01:40]} 20. exd5 {[%clk 0:02:12]}  e4 {[%clk 0:00:56]} 21. Qxe4 {[%clk 0:02:11]}  Bf6 {[%clk 0:00:36]} 22. dxc6 {[%clk 0:02:07]}  Bxc6 {[%clk 0:00:36]} 23. Qf4 {[%clk 0:01:58]}  Rhe8 {[%clk 0:00:25]} 24. Qf2 {[%clk 0:01:49]}  Bxb2 {[%clk 0:00:17]} 25. Rab1 {[%clk 0:01:40]}  Bf6 {[%clk 0:00:16]} 26. Bd4 {[%clk 0:01:33]}  Qe7 {[%clk 0:00:14]} 27. Nf4 {[%clk 0:01:26]}  Kg8 {[%clk 0:00:12]} 28. Rfe1 {[%clk 0:01:21]}  Bxd4 {[%clk 0:00:11]} 29. Qxd4 {[%clk 0:01:17]}  Qg5 {[%clk 0:00:10]} 30. Rf1 {[%clk 0:01:06]}  Re7 {[%clk 0:00:03]} 31. f6 {[%clk 0:01:02]}  gxf6 {[%clk 0:00:01]} 32. Nh5 {[%clk 0:01:00]} 1-0


[Site "https://www.chess.com"]

[Event "Titled Tuesday Blitz February 28 Early 2023"]
[White "Einarsson, Halldor Gretar"]
[Black "Vargas, Mauricio"]
[WhiteFideId "2300150"]
[BlackFideId "4404572"]
[WhiteElo "2126"]
[BlackElo "2025"]
[Result "1-0"]
[Round "07"]
[TimeControl "180+2"]
[Date "2023.02.28"]
[WhiteClock "0:00:32"]
[BlackClock "0:00:02"]

1. d4 {[%clk 0:03:00]}  d5 {[%clk 0:01:19]} 2. Nf3 {[%clk 0:02:57]}  c6 {[%clk 0:01:20]} 3. c4 {[%clk 0:02:52]}  e6 {[%clk 0:01:21]} 4. Nc3 {[%clk 0:02:50]}  dxc4 {[%clk 0:01:21]} 5. a4 {[%clk 0:02:48]}  Bb4 {[%clk 0:01:19]} 6. g3 {[%clk 0:02:41]}  b5 {[%clk 0:01:17]} 7. Bg2 {[%clk 0:02:41]}  Bb7 {[%clk 0:01:11]} 8. O-O {[%clk 0:02:39]}  Qc8 {[%clk 0:01:08]} 9. Ne5 {[%clk 0:02:30]}  Nf6 {[%clk 0:01:06]} 10. Bg5 {[%clk 0:02:11]}  Nd5 {[%clk 0:01:03]} 11. Nxd5 {[%clk 0:02:02]}  exd5 {[%clk 0:00:37]} 12. e4 {[%clk 0:01:44]}  f6 {[%clk 0:00:33]} 13. Qh5+ {[%clk 0:01:42]}  g6 {[%clk 0:00:26]} 14. Nxg6 {[%clk 0:01:41]}  fxg5 {[%clk 0:00:20]} 15. Nxh8+ {[%clk 0:01:30]}  Kd8 {[%clk 0:00:17]} 16. Qxg5+ {[%clk 0:01:25]}  Kc7 {[%clk 0:00:17]} 17. Nf7 {[%clk 0:01:20]}  Qf8 {[%clk 0:00:12]} 18. Qe5+ {[%clk 0:00:53]}  Bd6 {[%clk 0:00:11]} 19. Nxd6 {[%clk 0:00:52]}  Qxd6 {[%clk 0:00:09]} 20. Qxd6+ {[%clk 0:00:40]}  Kxd6 {[%clk 0:00:09]} 21. e5+ {[%clk 0:00:40]}  Ke7 {[%clk 0:00:07]} 22. f4 {[%clk 0:00:38]}  Bc8 {[%clk 0:00:07]} 23. f5 {[%clk 0:00:38]}  Nd7 {[%clk 0:00:04]} 24. axb5 {[%clk 0:00:33]}  cxb5 {[%clk 0:00:03]} 25. Bxd5 {[%clk 0:00:32]}  Rb8 {[%clk 0:00:02]} 26. Rxa7 {[%clk 0:00:32]} 1-0


[Site "https://www.chess.com"]

[Event "Titled Tuesday Blitz February 28 Early 2023"]
[White "Simonovic, Miroslav"]
[Black "Dilmukhametov, Artur"]
[WhiteFideId "919152"]
[BlackFideId "24179922"]
[WhiteElo "2057"]
[BlackElo "2199"]
[Result "1-0"]
[Round "07"]
[TimeControl "180+2"]
[Date "2023.02.28"]
[WhiteClock "0:00:55"]
[BlackClock "0:01:06"]

1. d4 {[%clk 0:03:00]}  Nf6 {[%clk 0:02:58]} 2. Bg5 {[%clk 0:03:01]}  g6 {[%clk 0:02:56]} 3. Bxf6 {[%clk 0:03:01]}  exf6 {[%clk 0:02:56]} 4. c4 {[%clk 0:03:02]}  Bg7 {[%clk 0:02:56]} 5. Nc3 {[%clk 0:03:02]}  O-O {[%clk 0:02:56]} 6. g3 {[%clk 0:03:02]}  d6 {[%clk 0:02:56]} 7. e3 {[%clk 0:03:03]}  a6 {[%clk 0:02:48]} 8. Bg2 {[%clk 0:03:00]}  a5 {[%clk 0:02:42]} 9. Nge2 {[%clk 0:02:58]}  Na6 {[%clk 0:02:42]} 10. O-O {[%clk 0:02:57]}  c5 {[%clk 0:02:40]} 11. Nd5 {[%clk 0:02:48]}  cxd4 {[%clk 0:02:38]} 12. exd4 {[%clk 0:02:47]}  Be6 {[%clk 0:02:37]} 13. Nec3 {[%clk 0:02:45]}  Nc7 {[%clk 0:02:35]} 14. b3 {[%clk 0:02:42]}  Nxd5 {[%clk 0:02:35]} 15. Bxd5 {[%clk 0:02:41]}  Bxd5 {[%clk 0:02:34]} 16. Nxd5 {[%clk 0:02:42]}  f5 {[%clk 0:02:33]} 17. Qd3 {[%clk 0:02:36]}  Rb8 {[%clk 0:02:26]} 18. Rfe1 {[%clk 0:02:31]}  b6 {[%clk 0:02:25]} 19. Ne7+ {[%clk 0:02:25]}  Kh8 {[%clk 0:02:23]} 20. Nc6 {[%clk 0:02:26]}  Qc7 {[%clk 0:02:20]} 21. Nxb8 {[%clk 0:02:26]}  Rxb8 {[%clk 0:02:19]} 22. Re2 {[%clk 0:02:17]}  Qd7 {[%clk 0:02:18]} 23. Rae1 {[%clk 0:02:17]}  Bf6 {[%clk 0:02:17]} 24. h4 {[%clk 0:02:12]}  h6 {[%clk 0:02:16]} 25. a3 {[%clk 0:02:03]}  Kg7 {[%clk 0:02:15]} 26. b4 {[%clk 0:02:03]}  axb4 {[%clk 0:02:14]} 27. axb4 {[%clk 0:02:04]}  b5 {[%clk 0:02:12]} 28. c5 {[%clk 0:02:02]}  dxc5 {[%clk 0:02:12]} 29. bxc5 {[%clk 0:02:02]}  Qxd4 {[%clk 0:02:09]} 30. Qxd4 {[%clk 0:02:01]}  Bxd4 {[%clk 0:02:09]} 31. c6 {[%clk 0:01:56]}  Rc8 {[%clk 0:02:05]} 32. Rc1 {[%clk 0:01:50]}  b4 {[%clk 0:01:52]} 33. Rc4 {[%clk 0:01:48]}  Bc3 {[%clk 0:01:49]} 34. Re7 {[%clk 0:01:44]}  Bd2 {[%clk 0:01:44]} 35. Rd7 {[%clk 0:01:41]}  Be1 {[%clk 0:01:41]} 36. Kf1 {[%clk 0:01:25]}  Bc3 {[%clk 0:01:38]} 37. f4 {[%clk 0:01:24]}  Bf6 {[%clk 0:01:23]} 38. Rb7 {[%clk 0:01:18]}  b3 {[%clk 0:01:18]} 39. Rxb3 {[%clk 0:01:17]}  g5 {[%clk 0:01:18]} 40. c7 {[%clk 0:01:00]}  gxf4 {[%clk 0:01:06]} 41. Rb8 {[%clk 0:00:55]} 1-0


[Site "https://www.chess.com"]

[Event "Titled Tuesday Blitz February 28 Early 2023"]
[White "Carlsen, Magnus"]
[Black "Dubov, Daniil"]
[WhiteFideId "1503014"]
[BlackFideId "24126055"]
[WhiteElo "2852"]
[BlackElo "2802"]
[Result "1-0"]
[Round "08"]
[TimeControl "180+2"]
[Date "2023.02.28"]
[WhiteClock "0:00:17"]
[BlackClock "0:00:01"]

1. e4 {[%clk 0:02:59]}  c5 {[%clk 0:02:59]} 2. Nf3 {[%clk 0:02:58]}  d6 {[%clk 0:03:00]} 3. d4 {[%clk 0:02:58]}  cxd4 {[%clk 0:03:00]} 4. Nxd4 {[%clk 0:02:59]}  Nf6 {[%clk 0:03:01]} 5. Nc3 {[%clk 0:02:59]}  Nc6 {[%clk 0:03:01]} 6. Bg5 {[%clk 0:02:59]}  g6 {[%clk 0:03:01]} 7. Bxf6 {[%clk 0:02:58]}  exf6 {[%clk 0:03:02]} 8. Bb5 {[%clk 0:02:57]}  Bd7 {[%clk 0:03:02]} 9. Bc4 {[%clk 0:02:56]}  Bg7 {[%clk 0:03:01]} 10. O-O {[%clk 0:02:54]}  O-O {[%clk 0:03:00]} 11. Nxc6 {[%clk 0:02:53]}  Bxc6 {[%clk 0:03:00]} 12. Qd3 {[%clk 0:02:54]}  Rc8 {[%clk 0:02:53]} 13. Rad1 {[%clk 0:02:50]}  Re8 {[%clk 0:02:49]} 14. Bb3 {[%clk 0:02:29]}  b5 {[%clk 0:02:30]} 15. Qxd6 {[%clk 0:02:22]}  Qxd6 {[%clk 0:02:10]} 16. Rxd6 {[%clk 0:02:23]}  f5 {[%clk 0:01:53]} 17. exf5 {[%clk 0:02:23]}  gxf5 {[%clk 0:01:53]} 18. Nd5 {[%clk 0:02:14]}  Bxb2 {[%clk 0:01:23]} 19. Nf6+ {[%clk 0:02:14]}  Bxf6 {[%clk 0:01:23]} 20. Rxf6 {[%clk 0:02:15]}  Re7 {[%clk 0:01:20]} 21. Rxf5 {[%clk 0:02:09]}  a5 {[%clk 0:01:20]} 22. c4 {[%clk 0:01:00]}  a4 {[%clk 0:01:02]} 23. Bd1 {[%clk 0:01:00]}  bxc4 {[%clk 0:00:44]} 24. Rc5 {[%clk 0:01:00]}  Bd7 {[%clk 0:00:42]} 25. Rxc8+ {[%clk 0:01:00]}  Bxc8 {[%clk 0:00:43]} 26. Bxa4 {[%clk 0:01:01]}  Ra7 {[%clk 0:00:28]} 27. Bb5 {[%clk 0:01:01]}  Rxa2 {[%clk 0:00:28]} 28. Bxc4 {[%clk 0:01:01]}  Rb2 {[%clk 0:00:24]} 29. Rc1 {[%clk 0:01:00]}  Bf5 {[%clk 0:00:23]} 30. h3 {[%clk 0:00:54]}  Rb1 {[%clk 0:00:23]} 31. Rxb1 {[%clk 0:00:51]}  Bxb1 {[%clk 0:00:23]} 32. Kh2 {[%clk 0:00:50]}  Kg7 {[%clk 0:00:24]} 33. Kg3 {[%clk 0:00:51]}  f6 {[%clk 0:00:23]} 34. Kf4 {[%clk 0:00:51]}  h6 {[%clk 0:00:23]} 35. Ke3 {[%clk 0:00:51]}  Bc2 {[%clk 0:00:24]} 36. Kd4 {[%clk 0:00:50]}  Ba4 {[%clk 0:00:23]} 37. Kd5 {[%clk 0:00:50]}  Bd7 {[%clk 0:00:16]} 38. Kd6 {[%clk 0:00:50]}  Bf5 {[%clk 0:00:16]} 39. Bd5 {[%clk 0:00:49]}  Kf8 {[%clk 0:00:14]} 40. h4 {[%clk 0:00:41]}  Bd3 {[%clk 0:00:13]} 41. Ke6 {[%clk 0:00:41]}  Kg7 {[%clk 0:00:13]} 42. Ke7 {[%clk 0:00:41]}  Bc2 {[%clk 0:00:12]} 43. g3 {[%clk 0:00:31]}  Bd1 {[%clk 0:00:12]} 44. f3 {[%clk 0:00:27]}  Be2 {[%clk 0:00:12]} 45. f4 {[%clk 0:00:20]}  Bg4 {[%clk 0:00:11]} 46. Be6 {[%clk 0:00:20]}  Be2 {[%clk 0:00:11]} 47. g4 {[%clk 0:00:19]}  Bd1 {[%clk 0:00:11]} 48. g5 {[%clk 0:00:18]}  hxg5 {[%clk 0:00:11]} 49. hxg5 {[%clk 0:00:18]}  fxg5 {[%clk 0:00:11]} 50. f5 {[%clk 0:00:19]}  Bh5 {[%clk 0:00:10]} 51. f6+ {[%clk 0:00:20]}  Kh6 {[%clk 0:00:10]} 52. Bf7 {[%clk 0:00:18]}  Be2 {[%clk 0:00:09]} 53. Bg6 {[%clk 0:00:16]}  Bc4 {[%clk 0:00:08]} 54. Bf5 {[%clk 0:00:16]}  g4 {[%clk 0:00:02]} 55. Bxg4 {[%clk 0:00:17]}  Kg6 {[%clk 0:00:01]} 56. Be6 {[%clk 0:00:17]} 1-0


[Site "https://www.chess.com"]

[Event "Titled Tuesday Blitz February 28 Early 2023"]
[White "Lazavik, Denis"]
[Black "Bacrot, Etienne"]
[WhiteFideId "13515110"]
[BlackFideId "605506"]
[WhiteElo "2560"]
[BlackElo "2667"]
[Result "1/2-1/2"]
[Round "08"]
[TimeControl "180+2"]
[Date "2023.02.28"]
[WhiteClock "0:00:09"]
[BlackClock "0:00:10"]

1. d4 {[%clk 0:03:00]}  d5 {[%clk 0:03:00]} 2. c4 {[%clk 0:03:01]}  c6 {[%clk 0:03:00]} 3. Nf3 {[%clk 0:03:01]}  Nf6 {[%clk 0:03:01]} 4. Qc2 {[%clk 0:03:02]}  g6 {[%clk 0:03:01]} 5. cxd5 {[%clk 0:03:02]}  cxd5 {[%clk 0:03:00]} 6. Bf4 {[%clk 0:03:02]}  Nc6 {[%clk 0:03:00]} 7. Nc3 {[%clk 0:02:59]}  Bg7 {[%clk 0:03:00]} 8. e3 {[%clk 0:02:59]}  O-O {[%clk 0:02:55]} 9. Be2 {[%clk 0:02:59]}  Qb6 {[%clk 0:02:45]} 10. O-O {[%clk 0:02:44]}  Bf5 {[%clk 0:02:44]} 11. Qb3 {[%clk 0:02:42]}  Qxb3 {[%clk 0:02:40]} 12. axb3 {[%clk 0:02:43]}  Rfc8 {[%clk 0:02:27]} 13. Rfc1 {[%clk 0:02:41]}  Nb4 {[%clk 0:02:22]} 14. Ne1 {[%clk 0:02:21]}  Nd7 {[%clk 0:02:09]} 15. g4 {[%clk 0:02:07]}  Be6 {[%clk 0:01:58]} 16. h3 {[%clk 0:01:59]}  a6 {[%clk 0:01:39]} 17. Nd3 {[%clk 0:01:47]}  Nxd3 {[%clk 0:01:37]} 18. Bxd3 {[%clk 0:01:48]}  f6 {[%clk 0:01:30]} 19. b4 {[%clk 0:01:37]}  Nb6 {[%clk 0:01:09]} 20. Ra5 {[%clk 0:01:16]}  Bf7 {[%clk 0:00:52]} 21. b5 {[%clk 0:01:11]}  e5 {[%clk 0:00:51]} 22. Bg3 {[%clk 0:01:11]}  Nc4 {[%clk 0:00:26]} 23. Bxc4 {[%clk 0:01:10]}  Rxc4 {[%clk 0:00:26]} 24. bxa6 {[%clk 0:00:49]}  Rxa6 {[%clk 0:00:26]} 25. Rb5 {[%clk 0:00:49]}  b6 {[%clk 0:00:22]} 26. Rd1 {[%clk 0:00:46]}  exd4 {[%clk 0:00:22]} 27. exd4 {[%clk 0:00:45]}  f5 {[%clk 0:00:20]} 28. gxf5 {[%clk 0:00:29]}  gxf5 {[%clk 0:00:20]} 29. Be5 {[%clk 0:00:24]}  Bxe5 {[%clk 0:00:12]} 30. dxe5 {[%clk 0:00:24]}  d4 {[%clk 0:00:13]} 31. Ne2 {[%clk 0:00:25]}  Bh5 {[%clk 0:00:13]} 32. Rd2 {[%clk 0:00:21]}  Bxe2 {[%clk 0:00:07]} 33. Rxe2 {[%clk 0:00:22]}  d3 {[%clk 0:00:07]} 34. Rd2 {[%clk 0:00:22]}  Rd4 {[%clk 0:00:07]} 35. e6 {[%clk 0:00:13]}  Ra1+ {[%clk 0:00:08]} 36. Kg2 {[%clk 0:00:13]}  Re1 {[%clk 0:00:08]} 37. Rxb6 {[%clk 0:00:12]}  Re2 {[%clk 0:00:09]} 38. Rd1 {[%clk 0:00:06]}  d2 {[%clk 0:00:09]} 39. Kf1 {[%clk 0:00:05]}  Rde4 {[%clk 0:00:09]} 40. Kg2 {[%clk 0:00:05]}  Rf4 {[%clk 0:00:10]} 41. Kg3 {[%clk 0:00:04]}  Rfxf2 {[%clk 0:00:09]} 42. e7 {[%clk 0:00:04]}  f4+ {[%clk 0:00:09]} 43. Kg4 {[%clk 0:00:04]}  Rxe7 {[%clk 0:00:10]} 44. Rd6 {[%clk 0:00:04]}  Ree2 {[%clk 0:00:09]} 45. b4 {[%clk 0:00:05]}  Kf7 {[%clk 0:00:08]} 46. b5 {[%clk 0:00:05]}  Ke7 {[%clk 0:00:09]} 47. Rd4 {[%clk 0:00:05]}  f3 {[%clk 0:00:09]} 48. b6 {[%clk 0:00:05]}  Re6 {[%clk 0:00:06]} 49. R1xd2 {[%clk 0:00:04]}  Rg6+ {[%clk 0:00:06]} 50. Kf4 {[%clk 0:00:03]}  Rf6+ {[%clk 0:00:05]} 51. Kg3 {[%clk 0:00:02]}  Rxd2 {[%clk 0:00:06]} 52. Rxd2 {[%clk 0:00:03]}  Rxb6 {[%clk 0:00:06]} 53. Kxf3 {[%clk 0:00:04]}  Kf7 {[%clk 0:00:06]} 54. Kg3 {[%clk 0:00:04]}  Kg7 {[%clk 0:00:07]} 55. Kh2 {[%clk 0:00:05]}  Kg6 {[%clk 0:00:07]} 56. Rg2+ {[%clk 0:00:06]}  Kh6 {[%clk 0:00:07]} 57. Rf2 {[%clk 0:00:06]}  Rg6 {[%clk 0:00:08]} 58. Rg2 {[%clk 0:00:07]}  Kg7 {[%clk 0:00:08]} 59. Rf2 {[%clk 0:00:08]}  Rf6 {[%clk 0:00:08]} 60. Rg2+ {[%clk 0:00:08]}  Rg6 {[%clk 0:00:09]} 61. Rf2 {[%clk 0:00:09]}  Rf6 {[%clk 0:00:09]} 62. Rg2+ {[%clk 0:00:09]}  Rg6 {[%clk 0:00:10]} 1/2-1/2


[Site "https://www.chess.com"]

[Event "Titled Tuesday Blitz February 28 Early 2023"]
[White "Matlakov, Maxim"]
[Black "Nakamura, Hikaru"]
[WhiteFideId "4168003"]
[BlackFideId "2016192"]
[WhiteElo "2666"]
[BlackElo "2879"]
[Result "1-0"]
[Round "08"]
[TimeControl "180+2"]
[Date "2023.02.28"]
[WhiteClock "0:00:08"]
[BlackClock "0:00:03"]

1. d4 {[%clk 0:03:00]}  d6 {[%clk 0:02:58]} 2. Nf3 {[%clk 0:03:00]}  f5 {[%clk 0:02:57]} 3. Bf4 {[%clk 0:02:57]}  Nf6 {[%clk 0:02:56]} 4. e3 {[%clk 0:02:56]}  g6 {[%clk 0:02:55]} 5. h3 {[%clk 0:02:51]}  Bg7 {[%clk 0:02:50]} 6. Be2 {[%clk 0:02:51]}  O-O {[%clk 0:02:49]} 7. O-O {[%clk 0:02:51]}  Nc6 {[%clk 0:02:49]} 8. c4 {[%clk 0:02:47]}  Qe8 {[%clk 0:02:48]} 9. Nc3 {[%clk 0:02:47]}  e5 {[%clk 0:02:47]} 10. Bh2 {[%clk 0:02:47]}  Ne4 {[%clk 0:02:40]} 11. Nd5 {[%clk 0:02:42]}  Rf7 {[%clk 0:02:36]} 12. b4 {[%clk 0:02:35]}  Be6 {[%clk 0:02:21]} 13. Rc1 {[%clk 0:02:32]}  exd4 {[%clk 0:02:03]} 14. exd4 {[%clk 0:02:29]}  Rc8 {[%clk 0:01:37]} 15. Nf4 {[%clk 0:02:26]}  Nxb4 {[%clk 0:01:32]} 16. Qb3 {[%clk 0:02:19]}  c5 {[%clk 0:01:32]} 17. a3 {[%clk 0:02:05]}  Na6 {[%clk 0:01:28]} 18. d5 {[%clk 0:01:41]}  Bd7 {[%clk 0:01:28]} 19. Qxb7 {[%clk 0:01:40]}  Nc7 {[%clk 0:01:22]} 20. Bd3 {[%clk 0:01:29]}  Ba4 {[%clk 0:01:13]} 21. Bxe4 {[%clk 0:01:13]}  Rb8 {[%clk 0:00:53]} 22. Qxa7 {[%clk 0:01:12]}  Ra8 {[%clk 0:00:50]} 23. Qb6 {[%clk 0:01:08]}  Ra6 {[%clk 0:00:30]} 24. Qb7 {[%clk 0:01:04]}  fxe4 {[%clk 0:00:21]} 25. Ng5 {[%clk 0:01:04]}  Re7 {[%clk 0:00:20]} 26. Nge6 {[%clk 0:00:56]}  Qa8 {[%clk 0:00:17]} 27. Qb1 {[%clk 0:00:44]}  Be5 {[%clk 0:00:12]} 28. Nxc7 {[%clk 0:00:40]}  Rxc7 {[%clk 0:00:13]} 29. Ne6 {[%clk 0:00:40]}  Bxh2+ {[%clk 0:00:13]} 30. Kxh2 {[%clk 0:00:41]}  Re7 {[%clk 0:00:14]} 31. Qxe4 {[%clk 0:00:39]}  Bd7 {[%clk 0:00:14]} 32. Rfe1 {[%clk 0:00:36]}  Bxe6 {[%clk 0:00:14]} 33. dxe6 {[%clk 0:00:25]}  Qxe4 {[%clk 0:00:15]} 34. Rxe4 {[%clk 0:00:26]}  Rxa3 {[%clk 0:00:16]} 35. Rd1 {[%clk 0:00:25]}  Ra6 {[%clk 0:00:16]} 36. Rd3 {[%clk 0:00:20]}  Kg7 {[%clk 0:00:16]} 37. g4 {[%clk 0:00:20]}  g5 {[%clk 0:00:14]} 38. Kg3 {[%clk 0:00:20]}  h6 {[%clk 0:00:13]} 39. h4 {[%clk 0:00:20]}  Kf6 {[%clk 0:00:12]} 40. Rf3+ {[%clk 0:00:20]}  Kg6 {[%clk 0:00:11]} 41. Rf8 {[%clk 0:00:19]}  Ra3+ {[%clk 0:00:09]} 42. f3 {[%clk 0:00:19]}  Rc3 {[%clk 0:00:08]} 43. Rg8+ {[%clk 0:00:16]}  Kf6 {[%clk 0:00:09]} 44. Rf8+ {[%clk 0:00:16]}  Kg7 {[%clk 0:00:09]} 45. Rf5 {[%clk 0:00:16]}  Kg6 {[%clk 0:00:09]} 46. Rd5 {[%clk 0:00:15]}  gxh4+ {[%clk 0:00:10]} 47. Kxh4 {[%clk 0:00:14]}  Rxf3 {[%clk 0:00:10]} 48. Rxd6 {[%clk 0:00:14]}  Kf6 {[%clk 0:00:10]} 49. Rc6 {[%clk 0:00:14]}  Rf1 {[%clk 0:00:10]} 50. Rxc5 {[%clk 0:00:14]}  Rh1+ {[%clk 0:00:11]} 51. Kg3 {[%clk 0:00:14]}  Rxe6 {[%clk 0:00:12]} 52. Rxe6+ {[%clk 0:00:10]}  Kxe6 {[%clk 0:00:13]} 53. Rh5 {[%clk 0:00:11]}  Rg1+ {[%clk 0:00:10]} 54. Kf3 {[%clk 0:00:11]}  Rf1+ {[%clk 0:00:10]} 55. Ke4 {[%clk 0:00:09]}  Rf6 {[%clk 0:00:07]} 56. Ra5 {[%clk 0:00:08]}  Kf7 {[%clk 0:00:04]} 57. Rf5 {[%clk 0:00:08]}  Ke7 {[%clk 0:00:03]} 58. Rxf6 {[%clk 0:00:08]}  Kxf6 {[%clk 0:00:04]} 59. c5 {[%clk 0:00:08]}  Ke6 {[%clk 0:00:03]} 60. c6 {[%clk 0:00:08]} 1-0


[Site "https://www.chess.com"]